bitfinex/quotes_BTCUSD_20250620
["timestamp","ask_amount","ask_price","bid_price","bid_amount"]
[1750410453846,5.58314773,106090.0,106080.0,4.49406464]
[1750410454030,5.58314773,106090.0,106080.0,4.44416886]
[1750410454234,5.58314773,106090.0,106080.0,4.39461308]
[1750410454360,5.58314773,106090.0,106080.0,4.3474173]
[1750410454600,5.58314722,106090.0,106080.0,4.30022152]
[1750410454803,5.58314722,106090.0,106080.0,4.20582996]
[1750410455036,5.58314569,106090.0,106080.0,4.14919503]
[1750410455249,5.58314569,106090.0,106080.0,4.05480347]
[1750410455449,5.58314569,106090.0,106080.0,3.99816854]
[1750410455663,5.48654569,106090.0,106080.0,3.85437276]
[1750410455895,5.48654569,106090.0,106080.0,3.75054205]
[1750410456108,4.59733149,106090.0,106080.0,2.85170712]
[1750410456309,4.62154569,106090.0,106080.0,2.81504512]
[1750410456514,4.62154569,106090.0,106080.0,2.71801817]
[1750410456728,4.62154569,106090.0,106080.0,2.67082239]
[1750410456929,4.62154569,106090.0,106080.0,2.61418746]
[1750410457132,4.60294569,106090.0,106080.0,2.59558746]
[1750410457344,4.60294569,106090.0,106080.0,2.53895253]
[1750410457560,3.03380448,106090.0,106080.0,0.9413634]
[1750410457774,3.03380448,106090.0,106080.0,0.93192436]
[1750410457985,3.03381035,106090.0,106080.0,0.88472914]
[1750410458210,3.03381035,106090.0,106080.0,0.85285914]
[1750410458416,3.0055394,106090.0,106080.0,0.85285914]
[1750410458644,3.01121105,106090.0,106080.0,0.84624917]
[1750410459061,3.11050105,106090.0,106080.0,0.60619575]
[1750410459283,3.08222529,106090.0,106080.0,0.50931534]
[1750410459501,3.13867223,106090.0,106080.0,0.43311579]
[1750410459717,3.13867223,106090.0,106080.0,0.22938059]
[1750410459951,0.52864021,106030.0,106010.0,0.1625269]
[1750410460166,1.54042,106020.0,106010.0,0.1625269]
[1750410460602,1.56871502,106020.0,106010.0,0.17295943]
[1750410460809,1.56871502,106020.0,106010.0,0.19182494]
[1750410460810,0.23871493,106020.0,106010.0,0.19182494]
[1750410461020,0.24814693,106020.0,106010.0,0.19182494]
[1750410461251,0.27657057,106020.0,106010.0,0.19182494]
[1750410461450,0.34468465,106020.0,106010.0,0.19182494]
[1750410461876,0.27657057,106020.0,106010.0,0.19182494]
[1750410462307,0.47464631,106020.0,106010.0,0.19182494]
[1750410462544,0.46521493,106020.0,106010.0,0.18239259]
[1750410462973,0.46521493,106020.0,106010.0,0.21399446]
[1750410463181,2.10691938,106020.0,106010.0,0.24956144]
[1750410463393,2.35858923,106020.0,106010.0,0.0599]
[1750410463832,2.35958923,106020.0,106010.0,0.0619]
[1750410464285,2.35858923,106020.0,106010.0,0.0599]
[1750410464490,2.45386816,106020.0,106010.0,0.0599]
[1750410464700,2.45286816,106020.0,106010.0,0.0639]
[1750410464916,2.45286816,106020.0,106010.0,0.005]
[1750410465126,0.74351433,106010.0,106000.0,0.18203]
[1750410465337,2.39130734,106010.0,106000.0,0.18203]
[1750410466189,2.61782734,106010.0,106000.0,0.18203]
[1750410466618,1.91039078,105990.0,105980.0,0.2574451]
[1750410466836,2.10491078,105990.0,105980.0,0.26688075]
[1750410467043,2.20018063,105990.0,105980.0,0.27631631]
[1750410467243,2.21909232,105990.0,105980.0,0.26688075]
[1750410467483,2.21909232,105990.0,105980.0,0.28575178]
[1750410467717,2.21909232,105990.0,105980.0,0.27631631]
[1750410467929,2.22109232,105990.0,105980.0,0.26688075]
[1750410468138,2.22109232,105990.0,105980.0,0.27631631]
[1750410468346,2.22109232,105990.0,105980.0,0.2574451]
[1750410468772,2.22109232,105990.0,105980.0,0.26688075]
[1750410468987,2.20222289,105990.0,105980.0,0.06873574]
[1750410469186,2.20222289,105990.0,105980.0,0.25745059]
[1750410469414,2.22109232,105990.0,105980.0,0.27632162]
[1750410469617,2.22309232,105990.0,105980.0,0.26688615]
[1750410469826,2.22309232,105990.0,105980.0,0.25745059]
[1750410470054,2.22309232,105990.0,105980.0,0.26688624]
[1750410470712,2.21365774,105990.0,105980.0,0.26688624]
[1750410471142,0.21704094,105970.0,105960.0,0.18868665]
[1750410471356,0.03282681,105960.0,105950.0,0.35984921]
[1750410471586,0.07294681,105960.0,105950.0,0.36928744]
[1750410471804,0.07294681,105960.0,105950.0,0.58166744]
[1750410472021,0.08238371,105960.0,105950.0,0.58166744]
[1750410472240,0.09182069,105960.0,105950.0,0.58166744]
[1750410472445,0.02353093,105960.0,105950.0,0.52226637]
[1750410472660,0.02353093,105960.0,105950.0,0.67694637]
[1750410472884,0.02353093,105960.0,105950.0,0.68660625]
[1750410473097,0.02553093,105960.0,105950.0,0.52226637]
[1750410473303,0.02653093,105960.0,105950.0,0.52326637]
[1750410473514,0.03396774,105960.0,105950.0,0.67794637]
[1750410473914,0.02653093,105960.0,105950.0,0.67794637]
[1750410474099,0.02653093,105960.0,105950.0,0.58274744]
[1750410474350,0.02653093,105960.0,105950.0,0.42798744]
[1750410474558,0.02653093,105960.0,105950.0,0.58274744]
[1750410474764,0.02653093,105960.0,105950.0,0.58278744]
[1750410474970,0.0700269,105960.0,105950.0,0.58278744]
[1750410475186,0.0700269,105960.0,105950.0,0.58282744]
[1750410475390,0.0700269,105960.0,105950.0,0.42798744]
[1750410475600,0.0700269,105960.0,105950.0,0.58286744]
[1750410476471,5.77903581,105960.0,105950.0,0.15330139]
[1750410476683,6.03773581,105960.0,105950.0,0.00116261]
[1750410476913,6.06609081,105960.0,105950.0,0.00116261]
[1750410477138,6.16136066,105960.0,105950.0,0.00116261]
[1750410477580,6.18921343,105960.0,105950.0,0.00116261]
[1750410477854,6.15711343,105960.0,105950.0,0.00116261]
[1750410478077,6.00223343,105960.0,105950.0,0.00116261]
[1750410478290,6.25641343,105960.0,105950.0,0.00116261]
[1750410478504,6.25541343,105960.0,105950.0,0.00016261]
[1750410478734,6.22541343,105960.0,105950.0,0.00016261]
[1750410478962,0.54766407,105940.0,105930.0,0.0738324]
[1750410479184,5.69882066,105940.0,105930.0,0.0160324]
[1750410479428,5.85394066,105940.0,105930.0,0.0160324]
[1750410479634,0.20772291,105910.0,105900.0,0.0593]
[1750410479864,5.3211103,105910.0,105900.0,0.0593]
[1750410480376,0.23100191,105890.0,105880.0,0.0593]
[1750410480597,0.21100191,105890.0,105880.0,0.0493]
[1750410480847,5.64299044,105890.0,105880.0,0.04108638]
[1750410481055,0.23100932,105880.0,105870.0,0.02]
[1750410481277,0.22156441,105880.0,105870.0,0.12406521]
[1750410481496,0.22156441,105880.0,105870.0,0.15702447]
[1750410481497,0.27116843,105880.0,105870.0,0.15702447]
[1750410481718,0.02322739,105880.0,105870.0,0.41088301]
[1750410481952,0.00014077,105890.0,105880.0,0.2317668]
[1750410482178,0.00014077,105890.0,105880.0,0.32704573]
[1750410482401,0.00114077,105890.0,105880.0,0.32704573]
[1750410482632,0.00114077,105890.0,105880.0,0.33729097]
[1750410482901,0.00014077,105890.0,105880.0,0.33729097]
[1750410483080,0.00014077,105890.0,105880.0,0.34639097]
[1750410483314,0.00114077,105890.0,105880.0,0.34639097]
[1750410483740,0.00014077,105890.0,105880.0,0.51339097]
[1750410483955,0.00114077,105890.0,105880.0,0.66893559]
[1750410484174,0.00414077,105890.0,105880.0,0.66884793]
[1750410485524,0.00414077,105890.0,105880.0,0.50860269]
[1750410486394,0.00414077,105890.0,105880.0,0.35288269]
[1750410486623,0.00414077,105890.0,105880.0,0.50864269]
[1750410489545,0.00414077,105890.0,105880.0,0.50900269]
[1750410491286,0.00414077,105890.0,105880.0,0.5264995]
[1750410493289,0.00414077,105890.0,105880.0,0.52651841]
[1750410494161,0.00414077,105890.0,105880.0,0.50900269]
[1750410494381,0.00414077,105890.0,105880.0,0.52653848]
[1750410497233,0.00414077,105890.0,105880.0,0.52655725]
[1750410498570,0.00414077,105890.0,105880.0,0.52643725]
[1750410499050,0.00414077,105890.0,105880.0,0.5264367]
[1750410499487,0.00414077,105890.0,105880.0,0.56413772]
[1750410500157,0.00414077,105890.0,105880.0,0.5641587]
[1750410501133,0.00414077,105890.0,105880.0,0.5641187]
[1750410502256,0.00414077,105890.0,105880.0,0.4081587]
[1750410502515,0.00514077,105890.0,105880.0,0.48577683]
[1750410502726,0.00514077,105890.0,105880.0,0.50031768]
[1750410502949,0.07908372,105890.0,105880.0,0.32983163]
[1750410503181,5.18704053,105890.0,105880.0,0.21592743]
[1750410503430,5.52822197,105890.0,105880.0,0.19833755]
[1750410503664,5.50933391,105890.0,105880.0,0.21722586]
[1750410503886,5.49889069,105890.0,105880.0,0.21722586]
[1750410504106,5.51033391,105890.0,105880.0,0.21722586]
[1750410504329,5.49889069,105890.0,105880.0,0.21722586]
[1750410504551,5.46626372,105890.0,105880.0,0.21722586]
[1750410504784,5.46826372,105890.0,105880.0,0.21722586]
[1750410505038,0.00414077,105890.0,105880.0,0.31250479]
[1750410505266,0.10414077,105890.0,105880.0,0.32704564]
[1750410505497,0.10314077,105890.0,105880.0,0.54084666]
[1750410505731,0.10314077,105890.0,105880.0,0.59712861]
[1750410505994,0.10414077,105890.0,105880.0,0.59712861]
[1750410506427,0.10414077,105890.0,105880.0,0.55942759]
[1750410507541,0.10114077,105890.0,105880.0,0.55942759]
[1750410507765,0.10314077,105890.0,105880.0,0.55942759]
[1750410507993,0.10414077,105890.0,105880.0,0.55942759]
[1750410508433,0.10414077,105890.0,105880.0,0.50314564]
[1750410508668,0.10414077,105890.0,105880.0,0.55314564]
[1750410508944,0.10414077,105890.0,105880.0,0.62829847]
[1750410510037,0.10214077,105890.0,105880.0,0.62829847]
[1750410510516,0.10814077,105890.0,105880.0,0.62929847]
[1750410510968,0.11214077,105890.0,105880.0,0.63029847]
[1750410512345,0.11214077,105890.0,105880.0,0.92659847]
[1750410512578,0.11214077,105890.0,105880.0,1.24144564]
[1750410512801,0.11214077,105890.0,105880.0,1.33538668]
[1750410513688,0.11214077,105890.0,105880.0,1.37626668]
[1750410515716,0.11214077,105890.0,105880.0,1.48214668]
[1750410516082,0.11214077,105890.0,105880.0,0.63996668]
[1750410516084,0.11214077,105890.0,105880.0,0.75117812]
[1750410516714,0.11214077,105890.0,105880.0,0.71029812]
[1750410516888,0.11214077,105890.0,105880.0,0.55441812]
[1750410517267,0.11214077,105890.0,105880.0,0.71025812]
[1750410518171,0.11214077,105890.0,105880.0,0.55441812]
[1750410518402,0.11214077,105890.0,105880.0,0.63488564]
[1750410518687,0.11214077,105890.0,105880.0,0.63500564]
[1750410518923,0.11214077,105890.0,105880.0,0.71037812]
[1750410522123,0.11214077,105890.0,105880.0,0.63500564]
[1750410524284,0.17414077,105890.0,105880.0,0.48496564]
[1750410524729,0.17414077,105890.0,105880.0,0.32904564]
[1750410525175,0.17414077,105890.0,105880.0,0.37104005]
[1750410525400,0.17532077,105890.0,105880.0,0.52688005]
[1750410525615,0.17414077,105890.0,105880.0,0.5414209]
[1750410530474,0.11214077,105890.0,105880.0,0.56025812]
[1750410530710,0.11214077,105890.0,105880.0,0.58635812]
[1750410530906,0.11214077,105890.0,105880.0,0.61470761]
[1750410531120,0.11214077,105890.0,105880.0,0.60560761]
[1750410532232,0.11214077,105890.0,105880.0,0.58860761]
[1750410532906,0.11214077,105890.0,105880.0,0.51324564]
[1750410533139,0.11214077,105890.0,105880.0,0.58860485]
[1750410533371,0.11214077,105890.0,105880.0,0.51324564]
[1750410533827,0.11214077,105890.0,105880.0,0.35740564]
[1750410534039,0.11214077,105890.0,105880.0,0.51332564]
[1750410534262,0.11214077,105890.0,105880.0,0.60726668]
[1750410535171,0.11214077,105890.0,105880.0,0.51332564]
[1750410536755,0.11214077,105890.0,105880.0,0.58942564]
[1750410537439,0.11214077,105890.0,105880.0,0.51332564]
[1750410538150,0.11214077,105890.0,105880.0,0.35740564]
[1750410538379,0.17744077,105890.0,105880.0,0.35740564]
[1750410538616,0.09778788,105890.0,105880.0,0.58020564]
[1750410538849,0.09778788,105890.0,105880.0,0.58930564]
[1750410539356,0.09778788,105890.0,105880.0,0.60817564]
[1750410540943,0.09778788,105890.0,105880.0,0.37627564]
[1750410541199,0.09778788,105890.0,105880.0,0.53211564]
[1750410541635,0.16158788,105890.0,105880.0,0.53211564]
[1750410543657,0.16158788,105890.0,105880.0,0.53203564]
[1750410543863,0.09778788,105890.0,105880.0,0.53203564]
[1750410544068,0.09778788,105890.0,105880.0,0.63132564]
[1750410544284,0.09778788,105890.0,105880.0,0.37627564]
[1750410544830,0.16138788,105890.0,105880.0,0.53227564]
[1750410547709,0.16138788,105890.0,105880.0,0.36173479]
[1750410547947,0.16256788,105890.0,105880.0,0.31450479]
[1750410548174,0.16138788,105890.0,105880.0,0.31450479]
[1750410548727,0.15438788,105890.0,105880.0,0.32804564]
[1750410548938,0.15438788,105890.0,105880.0,0.48424564]
[1750410549146,0.15138788,105890.0,105880.0,0.48424564]
[1750410549344,0.15038788,105890.0,105880.0,0.48324564]
[1750410549550,0.15138788,105890.0,105880.0,0.48424564]
[1750410549769,0.15638788,105890.0,105880.0,0.48524564]
[1750410549926,0.15538788,105890.0,105880.0,0.48424564]
[1750410550380,0.15838788,105890.0,105880.0,0.48424564]
[1750410551423,0.15838788,105890.0,105880.0,0.32804564]
[1750410551629,0.15956788,105890.0,105880.0,0.48428564]
[1750410552805,0.15956788,105890.0,105880.0,0.48126619]
[1750410555610,0.15838788,105890.0,105880.0,0.48126619]
[1750410556274,0.12658788,105890.0,105880.0,0.48112092]
[1750410556477,0.12658788,105890.0,105880.0,0.50948192]
[1750410557099,0.09478788,105890.0,105880.0,0.65948192]
[1750410557312,0.09478788,105890.0,105880.0,1.51577192]
[1750410557532,0.09478788,105890.0,105880.0,1.52487192]
[1750410557647,0.09478788,105890.0,105880.0,1.47487192]
[1750410557858,0.09478788,105890.0,105880.0,1.52487192]
[1750410558124,0.09478788,105890.0,105880.0,1.47487192]
[1750410558550,0.09478788,105890.0,105880.0,1.52487192]
[1750410559223,0.09472532,105890.0,105880.0,1.52487192]
[1750410559636,0.09472532,105890.0,105880.0,1.51577192]
[1750410560534,0.09472532,105890.0,105880.0,1.49877192]
[1750410560785,0.15742532,105890.0,105880.0,0.33870107]
[1750410560998,0.15742532,105890.0,105880.0,0.49490107]
[1750410561606,0.15742532,105890.0,105880.0,0.35324192]
[1750410561747,0.15742532,105890.0,105880.0,0.50944192]
[1750410561972,0.15742532,105890.0,105880.0,0.50940192]
[1750410562952,0.15742532,105890.0,105880.0,0.35324192]
[1750410563157,0.15742532,105890.0,105880.0,0.50936192]
[1750410563459,0.15742532,105890.0,105880.0,0.35324192]
[1750410563683,0.15742532,105890.0,105880.0,0.50936192]
[1750410563882,0.15742532,105890.0,105880.0,0.35324192]
[1750410564106,0.15742532,105890.0,105880.0,0.50936192]
[1750410564309,0.15642532,105890.0,105880.0,0.50936192]
[1750410565838,0.15642532,105890.0,105880.0,0.50932192]
[1750410566276,0.09372532,105890.0,105880.0,0.85932192]
[1750410568787,0.09372532,105890.0,105880.0,0.95359625]
[1750410569226,0.09372532,105890.0,105880.0,1.05288625]
[1750410570222,0.07837289,105890.0,105880.0,0.95861192]
[1750410571861,0.14287289,105890.0,105880.0,0.95861192]
[1750410572073,0.14287289,105890.0,105880.0,0.65324192]
[1750410572290,0.14287289,105890.0,105880.0,0.80976192]
[1750410574067,0.14287289,105890.0,105880.0,0.65324192]
[1750410574276,0.14287289,105890.0,105880.0,0.80968192]
[1750410575749,0.14287289,105890.0,105880.0,0.65324192]
[1750410575966,0.14287289,105890.0,105880.0,0.80968192]
[1750410577072,0.07837289,105890.0,105880.0,0.80968192]
[1750410577283,0.07837289,105890.0,105880.0,0.95395625]
[1750410579426,0.07837289,105890.0,105880.0,1.10324625]
[1750410579652,0.07837289,105890.0,105880.0,1.61024625]
[1750410579857,0.07790071,105890.0,105880.0,1.61024625]
[1750410580065,0.0628,105910.0,105900.0,0.36718494]
[1750410580270,0.0628,105910.0,105900.0,0.61878387]
[1750410580271,0.06284709,105910.0,105900.0,0.61878387]
[1750410580907,0.06284709,105910.0,105900.0,0.64713987]
[1750410581311,0.06384709,105910.0,105900.0,0.65313987]
[1750410581535,0.064737,105910.0,105900.0,0.65313987]
[1750410581773,0.064737,105910.0,105900.0,0.66768072]
[1750410581999,0.064737,105910.0,105900.0,0.74308875]
[1750410590028,0.064737,105910.0,105900.0,0.66768072]
[1750410591065,0.064737,105910.0,105900.0,0.74307176]
[1750410592788,0.064737,105910.0,105900.0,0.66768072]
[1750410595809,0.064737,105910.0,105900.0,0.51136072]
[1750410596024,0.064737,105910.0,105900.0,0.74276495]
[1750410596842,0.064737,105910.0,105900.0,0.58676495]
[1750410597053,0.065867,105910.0,105900.0,0.74272495]
[1750410597259,0.065867,105910.0,105900.0,0.43676495]
[1750410597473,0.065867,105910.0,105900.0,0.59272495]
[1750410597889,0.065867,105910.0,105900.0,0.56436895]
[1750410598374,0.065867,105910.0,105900.0,0.40840895]
[1750410598612,0.065867,105910.0,105900.0,0.56436895]
[1750410599417,0.065867,105910.0,105900.0,0.33300472]
[1750410599623,0.065867,105910.0,105900.0,0.48892472]
[1750410601246,0.00204709,105910.0,105900.0,0.98057389]
[1750410601465,0.00118,105940.0,105930.0,0.23166427]
[1750410601466,0.06405,105940.0,105930.0,0.23166427]
[1750410601676,0.06409709,105940.0,105930.0,0.6329032]
[1750410601873,9.709e-05,105940.0,105930.0,0.6329032]
[1750410602129,9.709e-05,105940.0,105930.0,0.90552353]
[1750410602328,9.709e-05,105940.0,105930.0,0.95552353]
[1750410602757,9.709e-05,105940.0,105930.0,1.41368353]
[1750410602961,9.709e-05,105940.0,105930.0,1.48988353]
[1750410603164,5e-05,105960.0,105950.0,0.38162329]
[1750410603339,9.708e-05,105960.0,105950.0,0.92107545]
[1750410603513,9.708e-05,105960.0,105950.0,1.31760545]
[1750410603718,3.704e-05,105960.0,105950.0,1.33643125]
[1750410603916,3.704e-05,105960.0,105950.0,1.36511404]
[1750410604118,8.704e-05,105960.0,105950.0,1.24695404]
[1750410604317,0.00408704,105960.0,105950.0,1.32310115]
[1750410604495,0.00408704,105960.0,105950.0,1.22897212]
[1750410604698,0.00408704,105960.0,105950.0,1.15382501]
[1750410604979,0.00408704,105960.0,105950.0,1.25731553]
[1750410605198,0.00408704,105960.0,105950.0,1.20731553]
[1750410605566,0.00408704,105960.0,105950.0,1.1131865]
[1750410605767,8.704e-05,105960.0,105950.0,1.1121865]
[1750410605977,0.00108704,105960.0,105950.0,1.1121865]
[1750410606383,0.00208704,105960.0,105950.0,1.57721783]
[1750410606769,0.00208704,105960.0,105950.0,1.59421783]
[1750410608049,0.00208704,105960.0,105950.0,1.5191865]
[1750410608460,0.00208704,105960.0,105950.0,1.60333639]
[1750410608674,0.00208704,105960.0,105950.0,1.5283865]
[1750410609299,0.00208704,105960.0,105950.0,1.8246865]
[1750410609519,0.064,105990.0,105980.0,0.38156184]
[1750410609727,0.064,105990.0,105980.0,0.72642987]
[1750410609945,0.06352826,105990.0,105980.0,0.72642987]
[1750410610182,0.06352826,105990.0,105980.0,0.75476487]
[1750410610376,0.06352826,105990.0,105980.0,0.69858741]
[1750410610802,0.06452826,105990.0,105980.0,0.70158741]
[1750410611621,0.06452826,105990.0,105980.0,0.72964333]
[1750410612247,0.06452826,105990.0,105980.0,0.70158741]
[1750410612453,0.06552826,105990.0,105980.0,0.73463305]
[1750410614838,0.06552826,105990.0,105980.0,0.69718141]
[1750410616029,0.06552826,105990.0,105980.0,0.69730141]
[1750410616030,0.06665826,105990.0,105980.0,0.69730141]
[1750410616517,0.06665826,105990.0,105980.0,0.66925577]
[1750410620047,0.06665826,105990.0,105980.0,0.51317577]
[1750410620303,0.06665826,105990.0,105980.0,0.66909577]
[1750410621671,0.06665826,105990.0,105980.0,0.69714141]
[1750410623554,0.06552826,105990.0,105980.0,0.69714141]
[1750410623966,0.06674826,105990.0,105980.0,0.69714141]
[1750410625011,0.06552826,105990.0,105980.0,0.69714141]
[1750410625234,0.06552826,105990.0,105980.0,0.74163783]
[1750410625448,0.06552826,105990.0,105980.0,0.69714141]
[1750410625870,0.06552826,105990.0,105980.0,0.73459305]
[1750410627553,0.06552826,105990.0,105980.0,0.70654741]
[1750410627726,0.06552826,105990.0,105980.0,0.76272487]
[1750410627919,0.06552826,105990.0,105980.0,0.70654741]
[1750410628844,0.06552826,105990.0,105980.0,0.76272487]
[1750410629055,0.06552826,105990.0,105980.0,0.76279702]
[1750410629267,0.06552826,105990.0,105980.0,0.76279681]
[1750410629654,0.06552826,105990.0,105980.0,0.72527323]
[1750410629854,0.06552826,105990.0,105980.0,0.72547923]
[1750410630169,0.06552826,105990.0,105980.0,0.72547927]
[1750410631436,0.06552826,105990.0,105980.0,0.74399905]
[1750410638449,0.06552826,105990.0,105980.0,0.66909577]
[1750410639858,0.06505652,105990.0,105980.0,0.66909577]
[1750410641120,0.06505652,105990.0,105980.0,0.74456511]
[1750410641530,0.06505652,105990.0,105980.0,0.66909577]
[1750410645703,0.06505652,105990.0,105980.0,0.74459424]
[1750410648114,0.06505652,105990.0,105980.0,0.66909577]
[1750410648322,0.06505652,105990.0,105980.0,0.7632248]
[1750410649149,0.06405652,105990.0,105980.0,0.7602248]
[1750410649357,0.06305652,105990.0,105980.0,0.7552248]
[1750410649567,0.06805652,105990.0,105980.0,0.7562248]
[1750410652895,0.06805652,105990.0,105980.0,0.6003048]
[1750410653123,0.06805652,105990.0,105980.0,0.7554648]
[1750410657243,0.06805652,105990.0,105980.0,1.0517648]
[1750410657471,0.005,105990.0,105980.0,1.1017648]
[1750410657682,0.00023904,105990.0,105980.0,1.1605248]
[1750410657912,0.00023904,105990.0,105980.0,1.1425248]
[1750410658090,0.00023904,105990.0,105980.0,1.04839577]
[1750410659660,4.703e-05,105990.0,105980.0,1.04839577]
[1750410661619,4.703e-05,105990.0,105980.0,0.80247577]
[1750410661844,0.06374703,105990.0,105980.0,1.03725275]
[1750410662671,0.06374703,105990.0,105980.0,1.0517936]
[1750410664278,0.06374703,105990.0,105980.0,0.8967536]
[1750410664728,0.06374703,105990.0,105980.0,1.0517936]
[1750410664937,0.06374703,105990.0,105980.0,0.95751577]
[1750410665574,0.06374703,105990.0,105980.0,0.92918077]
[1750410667705,0.06374703,105990.0,105980.0,0.8684186]
[1750410667911,0.06374703,105990.0,105980.0,1.0234586]
[1750410669012,0.06374703,105990.0,105980.0,0.7271586]
[1750410669831,0.06327529,105990.0,105980.0,0.7271586]
[1750410678567,0.06327529,105990.0,105980.0,0.63288077]
[1750410681701,0.06327529,105990.0,105980.0,0.7271586]
[1750410694498,0.0635,106000.0,105990.0,0.22207492]
[1750410694724,0.0635,106000.0,105990.0,0.56672095]
[1750410694860,0.0635,106000.0,105990.0,0.71672095]
[1750410695073,0.04053,106040.0,106030.0,0.21691866]
[1750410695271,5e-05,106040.0,106030.0,0.37191866]
[1750410695484,0.06445,106040.0,106030.0,0.50494219]
[1750410695685,0.06459137,106040.0,106030.0,0.50494219]
[1750410696105,0.06459137,106040.0,106030.0,0.56155909]
[1750410696317,0.06459137,106040.0,106030.0,0.46719759]
[1750410696318,0.06559137,106040.0,106030.0,0.46719759]
[1750410696519,0.06559137,106040.0,106030.0,0.47674202]
[1750410696906,0.06559137,106040.0,106030.0,0.46719759]
[1750410699920,0.06511985,106040.0,106030.0,0.46719759]
[1750410700549,0.06511985,106040.0,106030.0,0.47683211]
[1750410700880,0.06511985,106040.0,106030.0,0.46719759]
[1750410708164,0.06511985,106040.0,106030.0,0.48173844]
[1750410708813,0.06511985,106040.0,106030.0,0.51934635]
[1750410709234,0.06411985,106040.0,106030.0,0.51934635]
[1750410710100,0.06411985,106040.0,106030.0,0.52334635]
[1750410710736,0.06411985,106040.0,106030.0,0.52634635]
[1750410713800,0.06411985,106040.0,106030.0,0.58296325]
[1750410714017,0.06411985,106040.0,106030.0,0.52634635]
[1750410716424,0.06411985,106040.0,106030.0,0.58296325]
[1750410719230,0.06411985,106040.0,106030.0,0.42796325]
[1750410719646,0.06411985,106040.0,106030.0,0.58288325]
[1750410720284,0.06411985,106040.0,106030.0,0.3568055]
[1750410720491,0.06411985,106040.0,106030.0,0.5117255]
[1750410721812,0.06411985,106040.0,106030.0,0.3568055]
[1750410722020,0.06411985,106040.0,106030.0,0.5116855]
[1750410722204,0.06411985,106040.0,106030.0,0.3568055]
[1750410722470,0.06411985,106040.0,106030.0,0.5116855]
[1750410723158,0.06411985,106040.0,106030.0,0.47407759]
[1750410723996,0.0931679,106040.0,106030.0,0.37879866]
[1750410724409,0.0931679,106040.0,106030.0,0.26159261]
[1750410724410,0.12161843,106040.0,106030.0,0.26159261]
[1750410724615,0.12161843,106040.0,106030.0,0.37879866]
[1750410725046,0.20161843,106040.0,106030.0,0.37879866]
[1750410725256,0.19142976,106040.0,106030.0,0.37879866]
[1750410725674,0.18199963,106040.0,106030.0,0.37879866]
[1750410726100,0.19142976,106040.0,106030.0,0.37879866]
[1750410726410,0.19142976,106040.0,106030.0,0.22391866]
[1750410727024,0.20085998,106040.0,106030.0,0.22391866]
[1750410727448,0.19142976,106040.0,106030.0,0.22391866]
[1750410727820,0.20085998,106040.0,106030.0,0.22391866]
[1750410728238,0.18199963,106040.0,106030.0,0.22391866]
[1750410728570,0.20085989,106040.0,106030.0,0.22391866]
[1750410729154,0.1914295,106040.0,106030.0,0.22391866]
[1750410729358,0.19142941,106040.0,106030.0,0.22391866]
[1750410729529,0.57886687,106040.0,106030.0,0.22391866]
[1750410729758,0.76747574,106040.0,106030.0,0.22391883]
[1750410729954,0.76747574,106040.0,106030.0,0.23334958]
[1750410730166,0.76747574,106040.0,106030.0,0.24278025]
[1750410730375,0.76747574,106040.0,106030.0,0.23334958]
[1750410730588,0.75804605,106040.0,106030.0,0.22391883]
[1750410730787,0.75804605,106040.0,106030.0,0.23334958]
[1750410731008,0.75804605,106040.0,106030.0,0.24278025]
[1750410733094,0.75804605,106040.0,106030.0,0.22391883]
[1750410733983,0.74861627,106040.0,106030.0,0.22391883]
[1750410734199,0.74861627,106040.0,106030.0,0.23334958]
[1750410735166,0.74861627,106040.0,106030.0,0.24278025]
[1750410735964,0.5505778,106040.0,106030.0,0.24278025]
[1750410736836,0.5600074,106040.0,106030.0,0.24278025]
[1750410737256,0.56943762,106040.0,106030.0,0.24278025]
[1750410738717,0.767476,106040.0,106030.0,0.24278025]
[1750410739087,0.57886793,106040.0,106030.0,0.24278025]
[1750410739498,0.56943762,106040.0,106030.0,0.24278025]
[1750410739753,0.5600074,106040.0,106030.0,0.24278025]
[1750410740177,0.56943762,106040.0,106030.0,0.24278025]
[1750410740585,0.5600074,106040.0,106030.0,0.24278025]
[1750410741004,0.7148874,106040.0,106030.0,0.24278025]
[1750410742093,0.72431762,106040.0,106030.0,0.24278025]
[1750410743760,0.7148874,106040.0,106030.0,0.24278025]
[1750410744650,0.70545727,106040.0,106030.0,0.24278025]
[1750410745240,0.70545727,106040.0,106030.0,0.26167025]
[1750410745462,0.70545719,106040.0,106030.0,0.24278025]
[1750410745933,0.68659763,106040.0,106030.0,0.24278025]
[1750410746165,0.65802008,106040.0,106030.0,0.24278025]
[1750410746682,0.66745003,106040.0,106030.0,0.24278025]
[1750410747189,0.66744995,106040.0,106030.0,0.24278025]
[1750410747933,0.52451985,106040.0,106030.0,0.27102442]
[1750410748464,0.52451985,106040.0,106030.0,0.30869837]
[1750410750604,0.53377588,106040.0,106030.0,0.30869837]
[1750410752055,0.52451985,106040.0,106030.0,0.30869837]
[1750410752946,0.52451985,106040.0,106030.0,0.2804542]
[1750410753588,0.48411985,106040.0,106030.0,0.2804542]
[1750410753802,0.48411985,106040.0,106030.0,0.44689088]
[1750410753803,0.11264137,106040.0,106030.0,0.44689088]
[1750410755078,0.14464137,106040.0,106030.0,0.44689088]
[1750410759529,0.08014137,106040.0,106030.0,0.44689088]
[1750410761110,0.14184137,106040.0,106030.0,0.44689088]
[1750410761321,0.14184137,106040.0,106030.0,0.4913873]
[1750410761531,0.14184137,106040.0,106030.0,0.44689088]
[1750410766181,0.11174137,106040.0,106030.0,0.44689088]
[1750410767916,0.08014137,106040.0,106030.0,0.44689088]
[1750410769677,0.08014137,106040.0,106030.0,0.40921693]
[1750410769884,0.08014137,106040.0,106030.0,0.44688825]
[1750410770313,0.00014137,106040.0,106030.0,0.40921693]
[1750410772347,0.00014137,106040.0,106030.0,0.42801693]
[1750410772559,0.00014137,106040.0,106030.0,0.37140003]
[1750410772767,0.00014137,106040.0,106030.0,0.35260003]
[1750410773207,0.00014137,106040.0,106030.0,0.44688923]
[1750410775138,0.00252277,106040.0,106030.0,0.42808923]
[1750410782479,0.00252277,106040.0,106030.0,0.44688923]
[1750410783011,0.00252277,106040.0,106030.0,0.42808923]
[1750410784463,0.00252277,106040.0,106030.0,0.45608923]
[1750410785551,0.00252277,106040.0,106030.0,0.37760003]
[1750410785741,0.00252277,106040.0,106030.0,0.37860003]
[1750410785986,0.00252277,106040.0,106030.0,1.01460003]
[1750410786201,0.00452277,106040.0,106030.0,1.12785713]
[1750410786417,0.00198608,106040.0,106030.0,1.03349003]
[1750410786623,0.00198608,106040.0,106030.0,1.16547409]
[1750410787091,5e-05,106050.0,106040.0,0.72143905]
[1750410787305,5e-05,106050.0,106040.0,1.09402975]
[1750410787718,5e-05,106050.0,106040.0,1.11291975]
[1750410789209,0.00905,106050.0,106040.0,1.09402975]
[1750410789423,0.00305,106050.0,106040.0,1.09402975]
[1750410789883,0.00705,106050.0,106040.0,1.39032975]
[1750410791861,0.00705,106050.0,106040.0,1.43064975]
[1750410792079,0.00705,106050.0,106040.0,1.48064975]
[1750410793460,0.02,106070.0,106060.0,1.02139814]
[1750410793667,0.02,106070.0,106060.0,1.37448457]